Cogmind - Beta 15 *** ADVENTURER MODE // 2025.05.11 @ 16:51:06 Player: Jack Result: Destroyed by G-47 Trooper with Particle Gun Performance ------------- Evolutions (1) 500 Regions Visited (3) 600 Robots Destroyed (11) 55 Value Destroyed (264) 264 Prototype IDs (0) 0 Alien Tech Used (0) 0 Bonus (0) 0 TOTAL SCORE: 1419 Bonus ------- None Cogmind --------- Core Integrity 0/400 Matter 242/300 Energy 100/100 System Corruption 0% Temperature Cool (9) Movement Core (50) Location -9/Materials Parts ------- > --- POWER (1) -------- (None) > --- PROPULSION (4) --- (None) > --- UTILITY (2) ------ (None) > --- WEAPON (2) ------- (None) > --- INVENTORY (5) ---- (None) Peak State ------------ > --- POWER ------------ (None) > --- PROPULSION ------- Flight Unit Flight Unit > --- UTILITY ---------- (None) > --- WEAPON ----------- Light Assault Rifle Light Assault Rifle > --- INVENTORY -------- (None) [Rating: 4] Favorites ----------- Power None Propulsion Flight Unit Flight Unit Flight Unit Utility None Weapon Small Laser Energy Gun Small Laser Ballistic Gun Light Assault Rifle Launcher Rocket Launcher Build | -11 -10 -10 -9 ------- Run | Yrd Mat Min Mat Slots Evolved 2 | . . . 2 Power . | . . . . Propulsion 2 | . . . 2 Utility . | . . . . Weapon . | . . . . Parts Attached 7 | 2 . . 5 Power . | . . . . Engine . | . . . . Core . | . . . . Reactor . | . . . . Propulsion 2 | . . . 2 Treads . | . . . . Leg . | . . . . Wheel . | . . . . Hover . | . . . . Flight 2 | . . . 2 Utility . | . . . . Device . | . . . . Storage . | . . . . Processor . | . . . . Hackware . | . . . . Protection . | . . . . Artifact . | . . . . Weapon 5 | 2 . . 3 Energy Gun 2 | 2 . . . Energy Cannon . | . . . . Ballistic Gun 2 | . . . 2 Ballistic Cannon . | . . . . Launcher 1 | . . . 1 Special Weapon . | . . . . Impact Weapon . | . . . . Slashing Weapon . | . . . . Piercing Weapon . | . . . . Special Melee Weapon . | . . . . Unidentified Prototypes . | . . . . Parts Lost 7 | . . . 7 Power . | . . . . Propulsion 2 | . . . 2 Utility . | . . . . Weapon 5 | . . . 5 Highest Loss Streak 5 | . . . 5 To Critical Strikes . | . . . . Average Backups . | . 1 1 . Power . | . . . . Propulsion . | . . . . Utility . | . . . . Weapon . | . 1 1 . Tool/Special . | . . . . Unused Backups . | . . . . Power . | . . . . Propulsion . | . . . . Utility . | . . . . Weapon . | . . . . Tool/Special . | . . . . Average Slot Usage (%) 22 | . 28 28 16 Flight 1 | . . . 2 Energy Gun 19 | . 28 28 7 Ballistic Gun 2 | . . . 5 Peak Build Rating 4 | 2 2 2 4 Average Rating 1 | 1 2 2 1 On Entrance 1 | . 2 2 2 Naked Turns 44 | . . . 44 Heaviest Build 4 | 2 2 2 4 Greatest Support 8 | 3 3 3 8 Greatest Overweight (x) 1 | . . . 1 Average Overweight (x) . | . . . . Largest Inventory Capacity 5 | 5 5 5 5 Average Capacity 5 | 5 5 5 5 Most Carried 1 | 1 1 1 1 Average Carried . | . 1 1 . Final Capacity 5 | 5 5 5 5 Final Carried 1 | 1 1 1 . Class Distribution -------------------- 100% | Mutant Dominant Class ---------------- Mutant | -10/Materials Mutant | -10/Mines Mutant | -9/Materials Resources | -11 -10 -10 -9 ----------- Run | Yrd Mat Min Mat Matter Collected 219 | 144 . 61 14 Remotely . | . . . . Salvage Created 256 | . . 61 195 Parts 22 | . . 4 18 Haulers Intercepted . | . . . . Recyclers Shooed . | . . . . Parts Field Recycled . | . . . . Retrieved Matter . | . . . . Parts Self-Destructed . | . . . . Prevented . | . . . . Kills | -11 -10 -10 -9 ------- Run | Yrd Mat Min Mat Combat Hostiles Destroyed 9 | . . . 9 Guns 4 | . . . 4 AOE 5 | . . . 5 Classes Destroyed 5 | . . 1 4 Worker 1 | . . . 1 Recycler 1 | . . 1 . Swarmer 3 | . . . 3 Grunt 5 | . . . 5 Duelist 1 | . . . 1 Best Kill Streak 6 | . . 1 6 Combat Bots Only 5 | . . . 5 Max Kills in Single Turn 3 | . . 1 3 Gunslinging . | . . . . Exploded 3 | . . . 3 Melee . | . . . . Uniques/NPCs Destroyed . | . . . . Combat | -11 -10 -10 -9 -------- Run | Yrd Mat Min Mat Hostile Shots Fired 142 | . 4 . 138 Missed 56 | . 2 . 54 Hits 86 | . 2 . 84 Melee 1 | . . . 1 Projectile 85 | . 2 . 83 Critical Strikes 1 | . . . 1 Damage Taken 833 | . 19 . 814 Core 425 | . 19 . 406 Absorbed by Shields . | . . . . Ignored by Resistances 247 | . 5 . 242 Core Remaining (%) 96 | 100 . 92 . Volleys Fired 21 | . . 2 19 Largest 2 | . . 2 2 Hottest 80 | . . 80 80 Shots Fired 30 | . . 4 26 Gun 27 | . . 4 23 Cannon . | . . . . Launcher 3 | . . . 3 Special . | . . . . Kinetic 9 | . . . 9 Thermal 18 | . . 4 14 Explosive 3 | . . . 3 Electromagnetic . | . . . . Robot Hit Streak 12 | . . 3 12 Robot Miss Streak 1 | . . 1 1 Penetration Max . | . . . . Secondary Targets 1 | . . . 1 Max Gunslinging Chain 1 | . . . 1 Shots Hit Robots 24 | . . 3 21 Core Hits 20 | . . 2 18 Critical Kills . | . . . . Critical Parts Destroyed . | . . . . Critical Strikes . | . . . . Melee Attacks . | . . . . Impact . | . . . . Slashing . | . . . . Piercing . | . . . . Sneak Attacks . | . . . . Combat Hostiles . | . . . . Follow-up Attacks . | . . . . Damage Inflicted 614 | . . 32 582 Guns 224 | . . 32 192 Cannons . | . . . . Explosions 390 | . . . 390 Melee . | . . . . Ramming . | . . . . Kinetic 63 | . . . 63 Thermal 161 | . . 32 129 Explosive 390 | . . . 390 Electromagnetic . | . . . . Impact . | . . . . Slashing . | . . . . Piercing . | . . . . Highest Corruption . | . . . . Average Corruption . | . . . . Corruption Purged . | . . . . Corruption Blocked . | . . . . Overload Shots . | . . . . Overflow Damage 3 | . . . 3 Projectiles . | . . . . Explosions 3 | . . . 3 Melee . | . . . . Knockbacks . | . . . . Impact . | . . . . Kinetic . | . . . . Secondary . | . . . . Self-Inflicted Damage 76 | . . . 76 Shots 3 | . . . 3 Rammed . | . . . . Targets Rammed . | . . . . Kicked . | . . . . Crushed . | . . . . Highest Temperature 31 | . . 3 31 Average Temperature 12 | . . 2 16 Received Heat Transfer 351 | . 15 . 336 Siege Activations . | . . . . Martial Activations . | . . . . Shielding Activations . | . . . . Robots Disrupted . | . . . . Combat Hostiles . | . . . . Robots Corrupted . | . . . . Combat Hostiles . | . . . . Parts Fried . | . . . . Impact Corruptions . | . . . . Robots Melted . | . . . . Combat Hostiles . | . . . . Parts Melted 1 | . . . 1 Heat Transferred 375 | . . 75 300 Parts Sabotaged . | . . . . Parts Stolen . | . . . . Parts Stripped . | . . . . Power Chain Reactions . | . . . . Alert | -11 -10 -10 -9 ------- Run | Yrd Mat Min Mat Maximum Alert Level 1 | . . . 1 Low Security (%) 95 | 100 100 100 89 Level 1 4 | . . . 10 Level 2 . | . . . . Level 3 . | . . . . Level 4 . | . . . . Level 5 . | . . . . High Security . | . . . . Max Security . | . . . . Peak Influence 229 | . 30 9 229 Initial 9 | . . 9 . Average 24 | . . 1 53 Influence Increases 384 | . 30 5 349 Destroy 0b10 Robot/C 180 | . . . 180 Destroy 0b10 Robot/NC 10 | . . 5 5 Destroy Leader 20 | . . . 20 Disable Machine 9 | . . . 9 Destroy Structure 15 | . . . 15 Lose Combat Pursuer 150 | . 30 . 120 Influence Decreases 165 | . . 35 130 Entered New Map 21 | . . 21 . Time Decay 74 | . . 14 60 Lost Part 70 | . . . 70 Squads Dispatched 1 | . . . 1 Investigation 1 | . . . 1 Extermination . | . . . . Reinforcement . | . . . . Assault . | . . . . Garrison . | . . . . Intercept . | . . . . Searches Triggered . | . . . . Construction Impeded . | . . . . Haulers Reinforced . | . . . . Active Scanning Responses . | . . . . Cargo Convoy Interrupts . | . . . . Stealth | -11 -10 -10 -9 --------- Run | Yrd Mat Min Mat Distress Signals . | . . . . Communications Jammed . | . . . . Distress Signals . | . . . . Times Spotted 29 | . 2 . 27 Peak Tracking Total 13 | . 2 . 13 Tactical Retreats 3 | . 1 . 2 Traps | -11 -10 -10 -9 ------- Run | Yrd Mat Min Mat Traps Triggered . | . . . . Indirectly . | . . . . Trap Hack Attempts . | . . . . Triggered . | . . . . Disarmed . | . . . . Reprogrammed . | . . . . Reused . | . . . . Traps Extracted . | . . . . Installed . | . . . . Triggered . | . . . . Machines | -11 -10 -10 -9 ---------- Run | Yrd Mat Min Mat Machines Disabled 1 | . . . 1 Max in Single Turn 1 | . . . 1 Machines Repaired . | . . . . Machines Dismantled . | . . . . Machines Sabotaged . | . . . . Overloaded Fab Kills . | . . . . Hacking | -11 -10 -10 -9 --------- Run | Yrd Mat Min Mat Machines Accessed 1 | . . . 1 Terminals 1 | . . . 1 Fabricators . | . . . . Repair Stations . | . . . . Recycling Units . | . . . . Scanalyzers . | . . . . Garrison Access . | . . . . Total Hacks 3 | . . . 3 Successful . | . . . . Failed 3 | . . . 3 Catastrophic 2 | . . . 2 Database Lockouts . | . . . . Manual 3 | . . . 3 Terminals 3 | . . . 3 Fabricators . | . . . . Repair Stations . | . . . . Recycling Units . | . . . . Scanalyzers . | . . . . Garrison Access . | . . . . Terminal Hacks . | . . . . Fabricator Hacks . | . . . . Repair Station Hacks . | . . . . Recycling Unit Hacks . | . . . . Scanalyzer . | . . . . Garrison Access Hacks . | . . . . Unauthorized Hacks . | . . . . Terminals . | . . . . Fabricators . | . . . . Repair Stations . | . . . . Recycling Units . | . . . . Scanalyzers . | . . . . Garrison Access . | . . . . Data Cores Recovered . | . . . . Used . | . . . . Hacking Detections 1 | . . . 1 Full Trace Events 1 | . . . 1 Feedback Events . | . . . . Feedback Blocked . | . . . . Robot Schematics Acquired . | . . . . Robots Built . | . . . . Authchips . | . . . . Time . | . . . . Total Robot Build Rating . | . . . . Part Schematics Acquired . | . . . . Parts Built . | . . . . Authchips . | . . . . Time . | . . . . Total Part Build Rating . | . . . . Parts Repaired . | . . . . Time . | . . . . Parts Recycled . | . . . . Recycled Matter . | . . . . Retrieved Matter . | . . . . Retrieved Components . | . . . . Parts Scanalyzed . | . . . . Part Schematics Acquired . | . . . . Parts Damaged . | . . . . Bothacking | -11 -10 -10 -9 ------------ Run | Yrd Mat Min Mat Used RIF Installer . | . . . . Robots Hacked . | . . . . Non-combat . | . . . . Combat . | . . . . Robot Hacks Applied . | . . . . Relay Couplers Released . | . . . . Fabnet Peak Effective % . | . . . . Robots Rewired . | . . . . Allies Hacked . | . . . . Hacks Repelled . | . . . . Allies | -11 -10 -10 -9 -------- Run | Yrd Mat Min Mat Total Allies . | . . . . Largest Group . | . . . . Highest-Rated Group . | . . . . Highest-Rated Ally . | . . . . Total Orders . | . . . . Ally Attacks . | . . . . Total Damage . | . . . . Kills . | . . . . Allies Corrupted . | . . . . Allies Melted . | . . . . Intel | -11 -10 -10 -9 ------- Run | Yrd Mat Min Mat Active Infowar (turns) . | . . . . Robot Analysis Total . | . . . . Derelict Logs Recovered 1 | . . 1 . Drone Launches . | . . . . Drone Recoveries . | . . . . Exploration | -11 -10 -10 -9 ------------- Run | Yrd Mat Min Mat Turns Passed 338 | 16 48 126 148 Spaces Moved 543 | 23 95 240 185 Core 494 | 23 95 240 136 Treads . | . . . . Legs . | . . . . Wheels . | . . . . Hover . | . . . . Flight 49 | . . . 49 Fastest Speed 37 | 50 50 50 37 Average Speed 49 | 50 50 50 47 Slowest Speed 100 | 50 50 50 100 Overloaded Moves . | . . . . Propulsion Burnouts . | . . . . Robots Hopped . | . . . . Potential Cave-ins . | . . . . Cave-ins Triggered . | . . . . Exploration Rate (%) 26 | 3 28 48 28 Regions Visited 3 Branch Regions 1 Pre-discovered Areas 1 | . . 1 . Known Exits Taken . | . . . . Unknown Exits Taken 3 | 1 1 1 . Scrap Searched . | . . . . Spaces Dug . | . . . . Terrain Destroyed 14 | . . . 14 Melee . | . . . . Projectile . | . . . . AOE 14 | . . . 14 Terrain Rammed . | . . . . Walls Destroyed . | . . . . Machines Disabled . | . . . . Actions | -11 -10 -10 -9 --------- Run | Yrd Mat Min Mat Total 578 | 25 94 241 218 Wait 9 | . . . 9 Move 540 | 22 94 239 185 Hop . | . . . . Pick Up 1 | 1 . . . Fast Attach 6 | 2 . . 4 Attach 1 | . . . 1 Detach . | . . . . Swap . | . . . . Drop . | . . . . Fire 21 | . . 2 19 Melee . | . . . . Ram . | . . . . Kick . | . . . . Crush . | . . . . Escape Stasis . | . . . . Rewire . | . . . . Trap . | . . . . Miscellaneous . | . . . . Route ------- -11/Scrapyard -10/Materials (discovered 2 exits: *Mat / [*Min]) -10/Mines -9/Materials (discovered 2 exits: [*Mat] / [*Min]) History --------- Turn | Location | Event 11 | -11/Scrapyard | Discovered new exit (range 12) 17 | -11/Scrapyard | Entered Materials 53 | -10/Materials | Discovered new exit (range 5) 57 | -10/Materials | Discovered new exit (range 15) 65 | -10/Materials | Entered Mines 118 | -10/Mines | Learned location of Mines (-9) 186 | -10/Mines | Discovered new exit (range 9) 191 | -10/Mines | Entered Materials 191 | -9/Materials | Evolved 2 slots: Propulsion x2 287 | -9/Materials | Core integrity fell below 50% 297 | -9/Materials | Discovered new exit (range 16) 302 | -9/Materials | Build established: Mutant 303 | -9/Materials | Discovered new exit (range 13) 322 | -9/Materials | Core integrity fell below 20% 339 | -9/Materials | Destroyed by G-47 Trooper with Particle Gun Last Messages --------------- Current location identified: Materials ALERT: Suspicious activity at Terminal M004. Dispatching Investigation squad. T-07 Excavator is excavating. EXIT=FOUND Flight Unit destroyed. Lgt. Assault Rifle destroyed. EXIT=FOUND Lgt. Assault Rifle destroyed. K-01 Serf collects debris. O-16 Technician: "IFF HANDSHAKE FAILED. SECURING TERMINAL." K-01 Serf collects debris. Acquired Rocket Launcher. Material Compactor disabled. K-01 Serf destroyed. L-31 Rogue destroyed. G-34 Mercenary destroyed. Rocket Launcher destroyed. Destroyed Rocket Launcher. Hadron Collector disabled. The unstable cave ceiling collapses. Map ----- +----------------------------------------------------+ | | | | | | | | | | | | | | | | | | | | | | | | | | | | | | | | | ?????????????????????????????????????????????????? | | ?????????????????????????????????????????????????? | | ??????????????????????????#######????????????????? | | ????????????############### #????????????????? | | ????????????# #????????????????? | | ????????????# < = < +????????????????? | | ????????????# % =%= #????????????????? | | ???????????#### * ! ### #????????????????? | | ???????????# % Y##### ##????????????????? | | ???????????# [% @ # #?????????????????? | | ???????????# " ==%# # #?????????????????? | | ???????????# "" = # #?????????????????? | | ???????????# " ! g # #?????????????????? | | ???????????# " # "" g #?????????????????? | | ???????????# # """ # #?????????????????? | | ???????????# # """ # #?????????????????? | | ???????????########### """ # #?????????????????? | | ?????????????????????# Y # #?????????????????? | | ?????????????????????# # #?????????????????? | | ?????????????????????####### #?????????????????? | | ???????????????????????????# #?????????????????? | | ###????????????????????????# #?????????????????? | | T #????????????????????????# #?????????????????? | | ########################## #?????????????????? | | + % #?????????????????? | | # ####### #?????????????????? | | # #?##### #?????????????????? | | ### #? # #?????????????????? | | ?# # """ # #?????????????????? | | ?# # """ # #?????????????????? | | ?# ############# / """ # #?????????????????? | | ?##+##?# ?# # ??# #?????????????????? | | ???????# # # ]?+ ?????????????????? | | ???????# # #? # #?????????????????? | +----------------------------------------------------+ Best States ------------- Heat Dissipation 28 Energy Generation 5 Energy Capacity 100 Matter Stores 295 Matter Capacity 300 Sight Range 16 Terrain Scan Density 10 Resistance: KI 20 Resistance: TH 20 Resistance: EX 20 Resistance: EM 20 Resistance: I 20 Resistance: S 20 Resistance: P 20 Evasion (%) 62 Offensive Hacking 10 Item Schematics ----------------- None Robot Schematics ------------------ None Fabricated ------------ Nothing Repaired ---------- Nothing Alien Tech Used ----------------- None Achievements -------------- None Challenges ------------ None Game ------ Seed SystemCentriumWand Manual? 0 Play Time 00:04:59 Cumulative 118.6 hours Start 2025.05.11 @ 16:47:46 End 2025.05.11 @ 16:51:06 Sessions 1 Manual Loads 0 Difficulty Adventurer Special Mode None Game No. 133 Rogue 18 Adventurer 104 Explorer 11 Win Type - Total 26 Types 8/0/10/0/3/0/4/1/0/0 Lore% 38 Gallery% 38 Achievement% 62 Wizard Run 0 Options --------- Layout 0 ASCII 0 Keyboard 0 Movement Numpad Keybinds 0 Fullscreen 2 Font 12/Smallcaps Map View 83x54 Zoom Use 0% Tactical HUD 0 Map Filters NONE Filters NONE Steam 1 RUN: 3991c35f-d9ee-425c-ae5a-abe75e60369b